bitfinex/quotes_SOLUSD_20251103
["timestamp","ask_amount","ask_price","bid_price","bid_amount"]
[1762205401045,3.05909253,165.05,164.97,6.0614121]
[1762205401248,3.05909253,165.01,164.96,6.06197692]
[1762205401447,3.05909253,165.0,164.94,6.06281071]
[1762205401673,3.05909253,164.98,164.93,6.06307142]
[1762205401956,0.65,164.99,164.93,21.87101721]
[1762205402159,23.65109253,165.01,164.93,21.87101721]
[1762205402160,0.65,165.0,164.94,0.65]
[1762205402330,7.87760794,164.99,164.93,6.06307142]
[1762205402525,8.52760794,165.0,164.93,21.92101721]
[1762205402730,4.02609849,165.01,164.94,0.7]
[1762205402930,7.87760794,164.97,164.9,0.7]
[1762205403141,24.6141014,164.98,164.89,21.22623508]
[1762205403353,21.282,164.98,164.9,0.7]
[1762205403560,8.56760794,164.97,164.91,21.22369776]
[1762205403764,8.56760794,164.97,164.9,6.76417825]
[1762205403932,28.46960794,164.95,164.9,0.7]
[1762205404365,7.87760794,164.93,164.88,6.06501698]
[1762205404562,7.87760794,164.92,164.88,6.06501698]
[1762205404733,0.69,164.93,164.88,6.06501698]
[1762205405056,0.69,164.93,164.88,21.22755943]
[1762205405257,7.87760794,164.92,164.85,6.06612071]
[1762205405454,7.87760794,164.91,164.85,15.16530178]
[1762205405759,0.69,164.92,164.85,15.86530178]
[1762205406354,0.69,164.92,164.86,0.7]
[1762205406530,20.592,164.95,164.87,9.78882769]
[1762205406939,8.56760794,164.96,164.86,0.84216157]
[1762205406940,8.56760794,164.94,164.86,0.84216157]
[1762205407150,0.69,164.94,164.86,0.84216157]
[1762205407354,0.69,164.93,164.86,0.84216157]
[1762205407537,0.69,164.95,164.88,9.93098926]
[1762205407726,0.69,164.94,164.89,0.7]
[1762205407930,8.56760794,164.94,164.87,21.22884696]
[1762205408138,0.69,164.94,164.87,21.92884696]
[1762205408334,0.69,164.94,164.87,21.22884696]
[1762205408551,0.69,164.94,164.88,0.7]
[1762205408935,20.592,164.96,164.88,10.48882769]
[1762205409155,0.69,165.01,164.89,9.93098926]
[1762205409356,4.02129855,165.02,164.93,9.93098926]
[1762205409657,0.69,165.07,164.95,30.52298926]
[1762205409840,0.69,165.07,164.99,9.93098926]
[1762205410355,0.69,165.07,165.0,0.7]
[1762205410656,0.1,165.11,165.0,0.7]
[1762205410657,0.69,165.1,165.01,9.93098926]
[1762205410840,8.56760794,165.1,165.01,9.93098926]
[1762205411040,12.59028337,165.1,165.01,0.84216157]
[1762205411248,0.69,165.09,165.01,0.84216157]
[1762205411454,0.69,165.09,165.02,21.20955035]
[1762205412157,7.87760794,165.08,165.02,6.05987153]
[1762205412356,33.18228337,165.09,165.02,6.05987153]
[1762205412661,7.87760794,165.05,164.99,6.06097339]
[1762205412851,7.87760794,165.04,164.99,6.06097339]
[1762205413055,8.56760794,165.05,164.99,6.06097339]
[1762205413355,0.69,165.05,164.99,0.7]
[1762205413568,0.69,165.05,164.98,9.78882769]
[1762205413569,0.79,165.11,165.02,9.93098926]
[1762205413860,20.592,165.09,165.03,0.7]
[1762205414155,0.69,165.08,165.01,21.2108357]
[1762205414344,4.71625727,165.08,165.01,21.2108357]
[1762205414550,0.69,165.08,165.02,0.7]
[1762205415351,0.69,165.08,165.01,21.2108357]
[1762205415536,0.69,165.08,165.01,21.9108357]
[1762205415738,4.02653189,165.09,165.02,0.7]
[1762205415969,24.61853189,165.09,165.02,0.7]
[1762205416255,21.282,165.09,165.02,0.7]
[1762205417459,21.282,165.09,165.03,21.20826516]
[1762205418045,7.87760794,165.06,164.98,0.14216157]
[1762205418357,7.87760794,165.06,164.97,0.7]
[1762205418358,7.87760794,165.0,164.93,0.7]
[1762205418567,18.37498221,165.05,164.9,0.7]
[1762205418568,7.87760794,164.97,164.9,0.7]
[1762205418774,20.592,164.98,164.9,21.92498483]
[1762205418943,0.69,165.01,164.91,10.48882769]
[1762205419138,20.592,165.0,164.91,10.48882769]
[1762205419339,28.46960794,165.0,164.92,0.7]
[1762205419543,8.56760794,164.99,164.93,6.06317831]
[1762205419845,8.56760794,164.99,164.93,21.2211241]
[1762205419846,0.69,164.99,164.93,21.2211241]
[1762205420048,20.592,165.0,164.94,0.7]
[1762205420255,29.15960794,164.99,164.91,0.7]
[1762205420857,29.15960794,165.02,164.91,0.7]
[1762205421160,20.592,165.0,164.92,0.14216157]
[1762205421539,20.592,165.0,164.95,21.21855107]
[1762205421964,0.69,165.03,164.96,0.7]
[1762205422174,4.71584516,165.03,164.96,0.7]
[1762205422461,4.67687082,165.03,164.96,0.7]
[1762205422660,0.65102566,165.03,164.96,0.7]
[1762205423442,14.81351363,165.08,164.96,0.7]
[1762205423700,0.1,165.11,164.99,9.93098926]
[1762205423845,21.79311475,165.11,165.0,0.7]
[1762205424171,11.90428706,165.1,165.0,0.7]
[1762205424343,12.59428706,165.1,165.0,0.7]
[1762205424661,0.69,165.09,165.0,0.7]
[1762205425462,0.69,165.09,165.01,0.14216157]
[1762205425659,0.69,165.09,165.02,21.20955035]
[1762205425846,0.69,165.09,165.02,21.90955035]
[1762205426040,21.282,165.09,165.03,0.7]
[1762205427644,0.1,165.11,165.04,21.20698011]
[1762205428068,20.692,165.11,165.05,0.66]
[1762205429668,20.692,165.11,165.06,21.20441051]
[1762205429867,0.1,165.11,165.06,21.20441051]
[1762205430068,0.1,165.11,165.07,0.66]
[1762205431672,0.1,165.11,165.08,21.20184152]
[1762205431844,0.67,165.1,165.08,6.057669]
[1762205432047,0.1,165.11,165.08,6.057669]
[1762205432249,0.1,165.11,165.08,21.20184152]
[1762205432570,0.1,165.11,165.08,6.057669]
[1762205432753,0.72,165.1,165.08,21.20184152]
[1762205432954,0.72,165.1,165.06,6.05831488]
[1762205433173,0.72,165.1,165.05,6.05868929]
[1762205433467,0.72,165.1,165.02,15.149589]
[1762205433468,8.59760794,165.1,165.02,21.20945818]
[1762205433660,0.72,165.1,165.06,6.058403]
[1762205434668,8.59760794,165.1,165.06,6.058403]
[1762205434874,7.87760794,165.08,165.01,15.1503713]
[1762205435067,8.59760794,165.09,165.02,6.05987153]
[1762205435257,8.59760794,165.09,165.02,21.91955035]
[1762205435670,0.72,165.09,165.03,0.71]
[1762205435871,0.1,165.11,165.06,20.592]
[1762205436088,0.1,165.12,165.08,9.93098926]
[1762205436374,1e-08,165.12,165.11,30.52298926]
[1762205436583,1e-08,165.12,165.11,31.23298926]
[1762205437173,7.97760794,165.22,165.11,31.23298926]
[1762205437174,1e-08,165.26,165.12,19.11216157]
[1762205437481,1e-08,165.26,165.23,20.73416157]
[1762205437653,1e-08,165.26,165.24,6.05180343]
[1762205438055,1e-08,165.26,165.23,21.32472283]
[1762205438271,1e-08,165.26,165.25,0.71]
[1762205438471,1e-08,165.26,165.24,9.78882769]
[1762205438720,1e-08,165.26,165.25,0.14216157]
[1762205439186,1e-08,165.26,165.25,10.64098926]
[1762205439682,1e-08,165.26,165.25,6.90359878]
[1762205441151,1e-08,165.26,165.25,6.05143721]
[1762205441355,1e-08,165.26,165.24,6.05166148]
[1762205441755,1e-08,165.26,165.24,6.76166148]
[1762205442794,1e-08,165.26,165.24,6.05166148]
[1762205442971,1e-08,165.26,165.22,6.05224175]
[1762205443175,0.72000001,165.26,165.22,6.05224175]
[1762205443382,0.72000001,165.26,165.22,21.18358178]
[1762205443589,1e-08,165.26,165.23,0.71]
[1762205443772,1e-08,165.26,165.22,21.18358178]
[1762205444685,1e-08,165.26,165.22,21.89358178]
[1762205445408,0.72000001,165.26,165.22,6.05224175]
[1762205445697,0.72,165.25,165.18,9.78882769]
[1762205445875,0.72,165.25,165.19,21.89772321]
[1762205446070,1e-08,165.26,165.19,21.18772321]
[1762205446405,1e-08,165.26,165.2,0.71]
[1762205446775,1e-08,165.26,165.23,0.14216157]
[1762205447076,1e-08,165.26,165.25,0.14216157]
[1762205447394,0.82,165.31,165.25,0.14216157]
[1762205447692,0.82,165.31,165.25,21.18003025]
[1762205450204,0.82,165.31,165.25,21.89003025]
[1762205450697,0.82,165.31,165.25,21.18003025]
[1762205452084,0.82,165.31,165.25,21.89003025]
[1762205452483,0.82,165.31,165.26,0.14216157]
[1762205452885,0.82,165.31,165.26,0.85216157]
[1762205453988,0.1,165.31,165.27,21.17746716]
[1762205454585,0.82,165.31,165.27,21.17746716]
[1762205455390,0.1,165.31,165.28,0.71]
[1762205455701,0.1,165.31,165.27,21.88746716]
[1762205457000,0.72,165.3,165.24,15.12859562]
[1762205457300,0.72,165.3,165.24,21.18039905]
[1762205457603,0.72,165.3,165.24,21.89039905]
[1762205457794,0.72,165.3,165.24,6.76180343]
[1762205459000,0.72,165.3,165.24,21.89131202]
[1762205460404,0.72,165.3,165.24,21.18131202]
[1762205460606,0.72,165.3,165.24,0.71]
[1762205461023,0.72,165.3,165.25,6.05143721]
[1762205461400,0.72,165.3,165.25,21.18003025]
[1762205461923,0.72,165.3,165.25,6.05143721]
[1762205462485,0.72,165.3,165.19,9.78882769]
[1762205462486,0.72,165.3,165.19,0.69]
[1762205462815,0.72,165.3,165.17,0.69]
[1762205462816,5.08309821,165.24,165.17,0.69]
[1762205463010,5.08309821,165.25,165.18,6.05400169]
[1762205463314,20.592,165.28,165.18,21.18900592]
[1762205463315,5.74309821,165.27,165.18,21.18900592]
[1762205463612,5.08309821,165.24,165.18,6.05400169]
[1762205463911,5.08309821,165.22,165.13,0.69]
[1762205464087,5.08309821,165.2,165.13,0.69]
[1762205464511,0.66,165.2,165.13,21.88532613]
[1762205464689,0.66,165.21,165.14,0.69]
[1762205465196,5.74309821,165.21,165.13,15.13883271]
[1762205465400,5.74309821,165.21,165.12,6.05620155]
[1762205465401,5.08309821,165.18,165.12,6.05620155]
[1762205465598,0.66,165.17,165.12,6.05620155]
[1762205466112,5.74309821,165.17,165.08,15.1439466]
[1762205466295,5.74309821,165.17,165.07,6.74768056]
[1762205466296,5.08309821,165.15,165.07,6.74768056]
[1762205466714,5.74309821,165.15,165.08,0.69]
[1762205466914,0.66,165.14,165.08,0.69]
[1762205467122,0.66,165.14,165.08,6.7476399]
[1762205467298,0.66,165.14,165.08,21.89181242]
[1762205467491,0.66,165.14,165.08,21.20181242]
[1762205468001,0.66,165.14,165.06,26.65005203]
[1762205468496,0.66,165.14,165.06,41.79605954]
[1762205468718,5.74309821,165.14,165.06,21.20405954]
[1762205468901,5.08309821,165.11,165.04,6.05911311]
[1762205469120,0.66,165.1,165.03,21.20735432]
[1762205469298,0.66,165.1,165.03,21.89735432]
[1762205469993,0.66,165.1,165.03,6.74950433]
[1762205470304,0.66,165.1,165.03,21.89826516]
[1762205471319,5.08309821,165.05,164.92,1.99999999]
[1762205471492,6.71707941,165.1,164.93,21.2211241]
[1762205471493,5.08309821,165.02,164.93,21.2211241]
[1762205471697,14.8719259,165.03,164.93,21.9111241]
[1762205471895,0.66,165.02,164.93,21.2211241]
[1762205472105,5.08309821,165.01,164.93,21.9111241]
[1762205472314,5.08309821,165.0,164.93,6.75317831]
[1762205472491,0.66,165.0,164.93,21.9111241]
[1762205472688,0.66,164.99,164.93,6.06317831]
[1762205473115,0.66,164.99,164.92,6.06354596]
[1762205473430,5.74309821,164.99,164.92,6.06354596]
[1762205473598,5.08309821,164.98,164.92,6.06354596]
[1762205473912,5.08309821,164.98,164.92,6.75354596]
[1762205473913,0.66,164.98,164.92,6.75354596]
[1762205474109,0.66,164.98,164.92,0.69]
[1762205474697,21.252,165.01,164.92,0.69]
[1762205475012,0.66,165.0,164.92,0.69]
[1762205475327,0.66,165.0,164.93,6.06317831]
[1762205475828,30.38082769,164.93,164.85,6.26606259]
[1762205476119,20.592,164.93,164.85,21.43136437]
[1762205476329,0.66,164.92,164.85,21.43136437]
[1762205476534,0.66,164.92,164.86,0.69]
[1762205476910,0.66,164.91,164.85,21.43136437]
[1762205477331,5.74309821,164.91,164.85,0.2]
[1762205477506,5.08309821,164.89,164.85,0.2]
[1762205477710,5.74309821,164.9,164.85,0.2]
[1762205477926,30.52298926,164.93,164.85,0.2]
[1762205477927,0.14216157,164.89,164.85,0.2]
[1762205478126,14.8719259,164.87,164.85,0.2]
[1762205478641,15.67408747,164.86,164.82,0.2]
[1762205478836,35.60608747,164.83,164.82,0.2]
[1762205479048,0.14216157,164.82,164.72,0.2]
[1762205479220,14.8719259,164.77,164.72,0.2]
[1762205479539,0.66,164.77,164.72,0.2]
[1762205479910,20.592,164.79,164.72,0.2]
[1762205480229,20.592,164.79,164.76,6.26943432]
[1762205480426,0.66,164.78,164.76,0.2]
[1762205480810,0.66,164.78,164.76,6.26940358]
[1762205481517,0.66,164.78,164.76,0.2]
[1762205481719,5.74309821,164.78,164.76,0.2]
[1762205482116,0.66,164.77,164.76,0.2]
[1762205483052,15.5319259,164.77,164.76,0.2]
[1762205483337,15.5319259,164.77,164.72,0.2]
[1762205483338,25.67509821,164.73,164.72,0.2]
[1762205483785,36.1239259,164.73,164.72,0.2]
[1762205483915,26.33509821,164.73,164.72,0.2]
[1762205484113,36.1239259,164.73,164.72,0.2]
[1762205484328,0.66,164.76,164.72,0.2]
[1762205484621,21.252,164.76,164.72,6.2709082]
[1762205484813,21.252,164.76,164.72,0.2]
[1762205485011,0.66,164.75,164.72,6.27081755]
[1762205485435,0.66,164.75,164.72,0.2]
[1762205485648,5.74309821,164.75,164.72,0.2]
[1762205485814,0.66,164.75,164.72,0.2]
[1762205486140,0.66,164.74,164.72,0.2]
[1762205487434,20.592,164.76,164.72,0.2]
[1762205487643,21.252,164.77,164.72,6.96078908]
[1762205487844,21.252,164.77,164.72,0.2]
[1762205488034,0.71,164.76,164.72,0.2]
[1762205488541,0.71,164.76,164.72,6.27080341]
[1762205488744,5.08309821,164.81,164.72,21.44807392]
[1762205488934,5.08309821,164.77,164.72,0.2]
[1762205489452,5.79309821,164.76,164.72,0.2]
[1762205489670,5.08309821,164.74,164.72,0.2]
[1762205489835,5.08309821,164.73,164.72,0.2]
[1762205490023,9.78882769,164.75,164.72,0.2]
[1762205490229,5.08309821,164.78,164.72,0.2]
[1762205490445,0.71,164.75,164.72,0.2]
[1762205491148,20.592,164.77,164.72,6.2709068]
[1762205491326,20.592,164.77,164.72,0.2]
[1762205491327,21.302,164.76,164.72,0.2]
[1762205491728,20.592,164.76,164.72,0.2]
[1762205491934,21.302,164.76,164.72,0.2]
[1762205492341,21.302,164.76,164.72,6.27067259]
[1762205492652,21.282,164.76,164.72,0.2]
[1762205492970,5.08309821,164.78,164.72,0.2]
[1762205492971,9.78882769,164.8,164.72,6.27086915]
[1762205493262,6.06500379,164.89,164.75,20.592]
[1762205493556,5.77309821,164.85,164.76,6.06943432]
[1762205493958,0.69,164.84,164.76,21.24302014]
[1762205494152,10.47882769,164.84,164.76,21.24302014]
[1762205494666,0.69,164.83,164.76,6.06943432]
[1762205495443,5.77309821,164.83,164.76,6.06943432]
[1762205495845,0.69,164.82,164.76,6.06943432]
[1762205498045,0.69,164.82,164.76,6.75943432]
[1762205499038,0.69,164.82,164.76,6.06943432]
[1762205499438,5.77309821,164.85,164.77,0.69]
[1762205499845,0.69,164.84,164.77,0.69]
[1762205500360,7.8924729,164.82,164.74,0.69]
[1762205500550,7.8924729,164.77,164.72,0.2]
[1762205500742,7.8924729,164.76,164.72,0.2]
[1762205501058,7.8924729,164.77,164.72,0.2]
[1762205501251,0.69,164.78,164.72,0.2]
[1762205501252,7.8924729,164.76,164.72,0.2]
[1762205501660,8.5824729,164.76,164.72,0.2]
[1762205501977,7.8924729,164.74,164.72,0.2]
[1762205502338,29.1744729,164.77,164.72,0.2]
[1762205502670,21.282,164.77,164.72,6.27079646]
[1762205502837,8.5824729,164.77,164.72,6.27079646]
[1762205503039,20.592,164.78,164.72,6.96079646]
[1762205503235,20.592,164.78,164.72,21.44806697]
[1762205503446,0.69,164.77,164.72,6.27079646]
[1762205504854,20.592,164.8,164.73,0.69]
[1762205505054,0.69,164.83,164.73,0.69]
[1762205505269,30.38082769,164.84,164.73,0.69]
[1762205505443,0.69,164.82,164.73,0.69]
[1762205506467,0.69,164.82,164.75,20.592]
[1762205506652,0.69,164.82,164.75,21.282]
[1762205506858,0.69,164.82,164.76,21.24302014]
[1762205507267,0.69,164.82,164.76,6.06943432]
[1762205507876,0.69,164.82,164.75,27.3515979]
[1762205508075,8.5824729,164.82,164.75,27.3515979]
[1762205508372,7.8924729,164.81,164.75,27.3515979]
[1762205508670,0.69,164.82,164.75,27.3515979]
[1762205508843,0.69,164.81,164.75,27.3515979]
[1762205511086,7.8924729,164.82,164.76,6.06927097]
[1762205511253,3.99396127,164.83,164.77,0.69]
[1762205511454,0.69,164.84,164.77,0.69]
[1762205512644,30.38082769,164.83,164.75,0.69]
[1762205512846,0.69,164.86,164.75,0.14216157]
[1762205513057,4.00196246,164.85,164.77,0.14216157]
[1762205513573,4.00196246,164.85,164.78,0.69]
[1762205514087,4.00196246,164.84,164.78,0.69]
[1762205514250,4.00196246,164.83,164.78,0.69]
[1762205514449,4.00196246,164.85,164.79,21.23915285]
[1762205514650,4.00196246,164.84,164.8,0.69]
[1762205514876,4.00196246,164.83,164.8,0.69]
[1762205515049,4.00196246,164.82,164.8,0.69]
[1762205515257,4.00196246,164.81,164.8,0.69]
[1762205515571,4.00196246,164.85,164.8,0.69]
[1762205515768,4.00196246,164.84,164.8,0.69]
[1762205515948,5.59061457,164.88,164.8,0.69]
[1762205515949,4.02407844,164.83,164.8,0.69]
[1762205516150,4.02407844,164.82,164.81,20.592]
[1762205516457,4.02407844,164.82,164.81,26.65959298]
[1762205516654,4.02407844,164.82,164.81,27.34959298]
[1762205520192,4.02407844,164.82,164.81,20.592]
[1762205520496,4.02407844,164.82,164.77,0.69]
[1762205520655,4.02407844,164.81,164.8,20.592]
[1762205520852,4.02407844,164.81,164.8,20.73416157]
[1762205521048,4.02407844,164.81,164.8,21.42416157]
[1762205521460,27.34852451,164.92,164.81,9.93098926]
[1762205521700,0.1,164.96,164.85,9.93098926]
[1762205521856,0.1,164.96,164.89,0.14216157]
[1762205522054,0.1,164.96,164.89,9.93098926]
[1762205522258,0.1,164.96,164.92,20.592]
[1762205522453,0.78,164.96,164.93,21.2211241]
[1762205522871,0.1,164.96,164.94,0.69]
[1762205523075,0.1,164.96,164.91,0.69]
[1762205523257,0.1,164.96,164.9,27.34628138]
[1762205523468,0.1,164.96,164.91,10.62098926]
[1762205523801,0.1,164.96,164.93,0.14216157]
[1762205524295,0.1,164.96,164.94,0.69]
[1762205524659,0.1,164.96,164.91,26.6558788]
[1762205524991,0.1,164.96,164.92,0.69]
[1762205525196,0.1,164.96,164.93,0.14216157]
[1762205525586,1e-08,164.96,164.95,9.93098926]
[1762205525965,0.1,165.02,164.95,10.62098926]
[1762205526195,0.1,165.02,164.97,30.52298926]
[1762205526572,0.1,165.02,164.99,21.21340687]
[1762205526774,0.1,165.02,164.99,6.06097339]
[1762205527008,0.1,165.02,165.0,0.69]
[1762205527475,0.1,165.02,165.01,20.73416157]
[1762205527683,0.68,165.1,165.03,20.73416157]
[1762205527868,0.68,165.1,165.03,20.592]
[1762205528075,0.68,165.1,165.03,21.282]
[1762205528402,0.68,165.1,165.04,0.69]
[1762205528700,7.8924729,165.15,165.05,21.20569523]
[1762205528876,0.68,165.12,165.05,21.20569523]
[1762205529074,0.68,165.12,165.05,21.89569523]
[1762205529268,0.68,165.15,165.07,0.14216157]
[1762205529502,0.68,165.18,165.09,0.14216157]
[1762205529780,0.68,165.18,165.08,21.282]
[1762205529980,0.68,165.18,165.09,0.69]
[1762205530690,0.68,165.18,165.1,6.05693519]
[1762205530894,7.8924729,165.14,164.97,1.99999999]
[1762205531189,7.8924729,165.14,164.9,30.32070274]
[1762205531190,7.8924729,165.12,165.04,0.69]
[1762205531394,0.68,165.13,165.04,0.69]
[1762205531693,7.8924729,165.1,165.02,20.592]
[1762205531903,0.68,165.13,165.02,20.592]
[1762205531904,7.8924729,165.09,165.02,0.69]
[1762205532081,8.5724729,165.12,165.03,21.282]
[1762205532277,20.592,165.11,165.03,21.282]
[1762205532480,20.592,165.11,165.04,0.69]
[1762205532693,20.592,165.11,165.04,6.74913222]
[1762205532870,0.68,165.15,165.04,21.89697516]
[1762205533072,0.68,165.15,165.04,6.05913222]
[1762205533073,7.8924729,165.12,165.04,6.05913222]
[1762205533295,7.8924729,165.12,165.05,0.69]
[1762205533598,8.5724729,165.12,165.05,0.69]
[1762205533806,8.5724729,165.11,165.03,27.34149071]
[1762205534296,0.68,165.11,165.04,0.69]
[1762205534591,9.78882769,165.12,165.03,20.592]
[1762205534892,8.5724729,165.1,165.03,20.592]
[1762205535881,0.68,165.09,165.03,26.65137908]
[1762205537167,0.68,165.09,165.03,20.592]
[1762205537378,7.8924729,165.06,164.98,0.69]
[1762205537581,7.8924729,165.06,164.98,6.75109535]
[1762205537867,0.68,165.09,165.02,6.05987153]
[1762205538089,0.14216157,165.14,165.03,0.69]
[1762205538090,20.592,165.11,165.03,0.69]
[1762205538390,0.68,165.16,165.05,20.592]
[1762205538588,4.92782281,165.23,165.09,20.592]
[1762205538589,0.68,165.15,165.09,20.592]
[1762205538771,28.4844729,165.19,165.09,20.592]
[1762205538970,1.99999999,165.25,165.1,10.62098926]
[1762205538971,0.68,165.25,165.1,10.62098926]
[1762205539292,20.592,165.2,165.1,0.69]
[1762205539479,7.8924729,165.18,165.1,0.69]
[1762205539881,0.68,165.17,165.1,0.69]
[1762205540071,8.5724729,165.17,165.1,6.74677906]
[1762205540480,0.68,165.17,165.1,6.74677906]
[1762205540771,20.592,165.19,165.11,0.69]
[1762205540972,0.68,165.18,165.11,0.69]
[1762205541168,0.68,165.18,165.1,20.592]
[1762205541373,8.5724729,165.18,165.1,26.64892183]
[1762205541775,0.68,165.17,165.1,26.64892183]
[1762205542092,0.68,165.17,165.09,6.74725434]
[1762205543073,0.68,165.21,165.12,20.592]
[1762205543296,0.68,165.21,165.13,0.69]
[1762205544094,0.68,165.25,165.16,9.93098926]
[1762205544303,0.68,165.25,165.17,0.69]
[1762205544882,0.1,165.26,165.19,20.592]
[1762205545198,0.78,165.26,165.19,20.592]
[1762205545595,0.78,165.26,165.19,21.282]
[1762205546403,0.78,165.26,165.2,6.05326876]
[1762205546698,0.1,165.26,165.2,21.87644067]
[1762205546899,0.1,165.26,165.21,0.69]
[1762205547382,0.78,165.26,165.19,26.64563174]
[1762205547786,0.78,165.26,165.19,27.30563174]
[1762205548099,0.1,165.26,165.2,0.66]
[1762205548279,0.1,165.26,165.21,21.18515827]
[1762205548475,0.1,165.26,165.23,0.14216157]
[1762205548681,0.1,165.31,165.25,20.73416157]
[1762205548882,0.1,165.31,165.26,30.52298926]
[1762205549111,0.1,165.31,165.22,0.14216157]
[1762205549112,8.6124729,165.3,165.22,0.14216157]
[1762205549304,7.8924729,165.28,165.21,0.66]
[1762205549502,7.8924729,165.26,165.2,6.05318257]
[1762205549699,7.8924729,165.26,165.2,0.66]
[1762205549892,7.8924729,165.24,165.17,0.66]
[1762205550294,7.8924729,165.24,165.17,6.71429349]
[1762205550682,8.6124729,165.25,165.17,6.71429349]
[1762205550907,0.72,165.24,165.17,6.71429349]
[1762205551103,8.6124729,165.24,165.17,6.71429349]
[1762205551494,7.8924729,165.24,165.18,20.592]
[1762205551702,7.8924729,165.21,165.14,6.05546808]
[1762205551897,30.38082769,165.26,165.15,0.14216157]
[1762205552196,30.38082769,165.26,165.18,26.64588433]
[1762205552197,0.72,165.25,165.18,26.64588433]
[1762205552400,8.6124729,165.25,165.18,26.64588433]
[1762205552585,7.8924729,165.23,165.18,20.592]
[1762205552791,0.68,165.25,165.18,0.69]
[1762205552985,7.8924729,165.24,165.16,6.0547348]
[1762205553403,8.5724729,165.24,165.16,21.1915718]
[1762205553609,8.5724729,165.23,165.16,6.7447348]
[1762205553783,8.5724729,165.23,165.17,20.592]
[1762205554210,0.68,165.23,165.18,6.05400169]
[1762205554386,0.68,165.23,165.18,6.01500575]
[1762205555905,20.592,165.25,165.19,0.69]
[1762205556103,7.8924729,165.25,165.16,27.33660801]
[1762205556304,7.8924729,165.22,165.16,27.33660801]
[1762205556609,7.8924729,165.23,165.16,27.33660801]
[1762205557612,7.8924729,165.23,165.16,42.47344501]
[1762205558314,7.8924729,165.23,165.16,20.592]
[1762205558315,0.68,165.22,165.16,20.592]
[1762205558525,7.8924729,165.21,165.15,6.0547878]
[1762205558860,9.78882769,165.21,165.13,6.05583479]
[1762205559003,8.5724729,165.2,165.13,6.05583479]
[1762205559410,8.5724729,165.2,165.13,6.74583479]
[1762205559917,8.5724729,165.2,165.13,21.88542178]
[1762205560318,5.77307798,165.2,165.13,21.88542178]
[1762205561204,5.09307798,165.19,165.13,21.88542178]
[1762205562139,6.05025754,165.29,165.16,20.592]
[1762205562308,5.09307798,165.24,165.16,20.592]
[1762205562511,5.77307798,165.25,165.16,21.282]
[1762205562727,4.00234338,165.27,165.16,21.282]
[1762205562728,5.77307798,165.24,165.16,21.282]
[1762205562926,0.68,165.24,165.16,21.282]
[1762205563130,0.68,165.24,165.17,6.05436822]
[1762205563510,0.68,165.24,165.17,21.88028878]
[1762205563730,5.09307798,165.26,165.18,0.69]
[1762205563907,0.68,165.25,165.18,0.69]
[1762205565032,4.00520317,165.27,165.19,21.18772321]
[1762205565233,0.68,165.28,165.22,20.592]
[1762205565234,4.00520317,165.28,165.22,20.592]
[1762205565418,0.78,165.31,165.23,0.69]
[1762205565620,0.68,165.3,165.23,0.69]
[1762205566116,20.592,165.3,165.23,0.69]
[1762205566434,4.00520317,165.29,165.23,0.69]
[1762205566634,4.78520317,165.31,165.23,0.69]
[1762205567215,4.78520317,165.31,165.24,21.18131202]
[1762205567410,0.68,165.3,165.2,9.93098926]
[1762205567634,0.68,165.3,165.24,20.592]
[1762205569111,0.68,165.3,165.25,6.05143721]
[1762205570235,4.68520317,165.3,165.24,6.05180343]
[1762205570616,4.68520317,165.3,165.24,21.18131202]
[1762205571030,4.68520317,165.3,165.24,6.05180343]